fUST/lending_fUST_20250818
["ID","MTS","AMOUNT","RATE_DAILY","PERIOD"]
[379972450,1755454246070,-591.23,0.00022739,2]
[379972451,1755454246080,-944.68,0.00022739,2]
[379972452,1755454246090,-480.0,0.00022739,2]
[379972453,1755454246099,-2087.31,0.00022739,2]
[379972454,1755454246109,-926.1,0.00022739,2]
[379972455,1755454246118,-241.1158523,0.00022739,2]
[379972456,1755454246129,-480.0,0.00022739,2]
[379972457,1755454246139,-480.0,0.00022739,2]
[379972458,1755454246148,-480.0,0.00022739,2]
[379972459,1755454246158,-354.11,0.00022739,2]
[379972460,1755454246167,-510.49,0.00022739,2]
[379972461,1755454246177,-12682.46447135,0.0002274,7]
[379972462,1755454246187,-1500.0,0.00022772,2]
[379972463,1755454246197,-220.112,0.0002278,2]
[379972464,1755454246206,-289.974,0.0002278,2]
[379972466,1755454246215,-150.0,0.0002278,2]
[379972468,1755454246224,-150.075,0.0002278,2]
[379972470,1755454246234,-150.0,0.0002278,2]
[379972472,1755454246244,-176.825,0.0002278,2]
[379972474,1755454246253,-972.0,0.0002278,2]
[379972476,1755454246263,-2153.0,0.0002278,2]
[379972478,1755454246274,-637.0,0.0002278,2]
[379972480,1755454246288,-151.0,0.00022807,4]
[379972482,1755454246298,-285.37552865,0.00022904,8]
[379972484,1755454246308,-6948.5598587,0.0002292,2]
[379972486,1755454246317,-4000.0,0.00022949,4]
[379972488,1755454246327,-660.0,0.0002299,2]
[379972490,1755454246336,-160.0,0.00023,2]
[379972492,1755454246346,-500.74,0.00023013,2]
[379972494,1755454246356,-539.5,0.00023013,2]
[379972495,1755454246365,-937.0,0.00023013,2]
[379972497,1755454246375,-591.23,0.00023013,2]
[379972498,1755454246384,-944.68,0.00023013,2]
[379972499,1755454246394,-480.0,0.00023013,2]
[379972500,1755454246403,-2087.31,0.00023013,2]
[379972501,1755454246412,-926.1,0.00023013,2]
[379972502,1755454246422,-480.0,0.00023013,2]
[379972503,1755454246431,-480.0,0.00023013,2]
[379972504,1755454246441,-480.0,0.00023013,2]
[379972505,1755454246451,-510.49,0.00023013,2]
[379972506,1755454246460,-167.0,0.00023014,7]
[379972507,1755454246470,-2000.0,0.000231,2]
[379972508,1755454246479,-151.0,0.000231,8]
[379972509,1755454246488,-513.61,0.00023128,2]
[379972510,1755454246497,-864.0,0.00023279,20]
[379972511,1755454246507,-500.74,0.00023287,2]
[379972512,1755454246516,-539.5,0.00023287,2]
[379972513,1755454246525,-937.0,0.00023287,2]
[379972514,1755454246535,-591.23,0.00023287,2]
[379972515,1755454246545,-944.68,0.00023287,2]
[379972516,1755454246554,-480.0,0.00023287,2]
[379972517,1755454246563,-2087.31,0.00023287,2]
[379972518,1755454246573,-926.1,0.00023287,2]
[379972519,1755454246583,-480.0,0.00023287,2]
[379972520,1755454246592,-480.0,0.00023287,2]
[379972521,1755454246602,-480.0,0.00023287,2]
[379972522,1755454246611,-510.49,0.00023287,2]
[379972523,1755454246621,-860.719203,0.00023288,2]
[379972524,1755454246630,-2000.0,0.0002332,2]
[379972525,1755454246639,-151.0,0.00023406,5]
[379972526,1755454246648,-6948.5598587,0.00023423,2]
[379972527,1755454246657,-33279.2,0.000235,2]
[379972528,1755454246666,-760.0,0.00023538,2]
[379972529,1755454246675,-500.74,0.00023561,2]
[379972530,1755454246684,-539.5,0.00023561,2]
[379972531,1755454246693,-937.0,0.00023561,2]
[379972532,1755454246704,-591.23,0.00023561,2]
[379972533,1755454246713,-944.68,0.00023561,2]
[379972534,1755454246723,-480.0,0.00023561,2]
[379972535,1755454246737,-2087.31,0.00023561,2]
[379972536,1755454246746,-926.1,0.00023561,2]
[379972537,1755454246755,-480.0,0.00023561,2]
[379972538,1755454246765,-480.0,0.00023561,2]
[379972539,1755454246774,-480.0,0.00023561,2]
[379972540,1755454246783,-510.49,0.00023561,2]
[379972541,1755454246792,-14389.81,0.000236,7]
[379972542,1755454246802,-5425.35,0.000236,7]
[379972543,1755454246811,-160.0,0.000236,7]
[379972544,1755454246821,-417.15472785,0.000236,7]
[379972545,1755454246829,-215.71995163,0.000236,7]
[379972546,1755454246839,-375.77065697,0.000236,7]
[379972547,1755454246847,-700.0,0.00023712,2]
[379972548,1755454246857,-500.74,0.00023835,2]
[379972549,1755454246866,-539.5,0.00023835,2]
[379972550,1755454246875,-937.0,0.00023835,2]
[379972551,1755454246994,-591.23,0.00023835,2]
[379972552,1755454247003,-944.68,0.00023835,2]
[379972553,1755454247013,-480.0,0.00023835,2]
[379972554,1755454247022,-2087.31,0.00023835,2]
[379972555,1755454247031,-926.1,0.00023835,2]
[379972556,1755454247040,-480.0,0.00023835,2]
[379972557,1755454247050,-480.0,0.00023835,2]
[379972558,1755454247060,-480.0,0.00023835,2]
[379972559,1755454247069,-510.49,0.00023835,2]
[379972560,1755454247078,-160.1676773,0.00023863,2]
[379972561,1755454247088,-2500.0,0.00023868,2]
[379972562,1755454247096,-6948.5598587,0.00023926,2]
[379972563,1755454247106,-500.0,0.00023934,2]
[379972564,1755454247116,-248.73521794,0.00023934,2]
[379972565,1755454247126,-158.61449762,0.00023934,2]
[379972566,1755454247136,-188.65528262,0.00023934,2]
[379972567,1755454247145,-400.51360892,0.00023934,2]
[379972568,1755454247157,-160.0,0.00024,7]
[379972569,1755454247166,-528.48506731,0.00024,7]
[379972570,1755454247176,-160.0,0.00024,7]
[379972571,1755454247185,-216.83204348,0.00024,7]
[379972572,1755454247194,-215.71995163,0.00024,3]
[379972573,1755454247203,-160.0,0.00024,7]
[379972574,1755454247213,-843.71309931,0.00024,7]
[379972575,1755454247222,-232.1512529,0.00024,7]
[379972576,1755454247232,-160.0,0.00024,7]
[379972577,1755454247241,-151.0,0.00024005,5]
[379972578,1755454247250,-616.34,0.00024053,2]
[379972579,1755454247260,-860.0,0.00024086,2]
[379972580,1755454247269,-1041.0,0.000241,2]
[379972581,1755454247279,-500.74,0.00024109,2]
[379972582,1755454247289,-539.5,0.00024109,2]
[379972583,1755454247298,-937.0,0.00024109,2]
[379972584,1755454247308,-591.23,0.00024109,2]
[379972585,1755454247317,-944.68,0.00024109,2]
[379972586,1755454247327,-480.0,0.00024109,2]
[379972587,1755454247337,-2087.31,0.00024109,2]
[379972588,1755454247347,-926.1,0.00024109,2]
[379972589,1755454247357,-480.0,0.00024109,2]
[379972590,1755454247366,-480.0,0.00024109,2]
[379972591,1755454247378,-480.0,0.00024109,2]
[379972592,1755454247387,-510.49,0.00024109,2]
[379972593,1755454247395,-582.9603991,0.00024356,2]
[379972594,1755454247405,-772.8401323,0.00024356,2]
[379972595,1755454247414,-500.74,0.00024383,2]
[379972596,1755454247423,-539.5,0.00024383,2]
[379972597,1755454247433,-937.0,0.00024383,2]
[379972598,1755454247442,-591.23,0.00024383,2]
[379972599,1755454247451,-944.68,0.00024383,2]
[379972600,1755454247460,-480.0,0.00024383,2]
[379972601,1755454247469,-2087.31,0.00024383,2]
[379972602,1755454247480,-926.1,0.00024383,2]
[379972603,1755454247489,-480.0,0.00024383,2]
[379972604,1755454247499,-480.0,0.00024383,2]
[379972605,1755454247509,-480.0,0.00024383,2]
[379972606,1755454247518,-510.49,0.00024383,2]
[379972607,1755454247527,-3000.0,0.00024416,2]
[379972608,1755454247538,-823.0,0.00024422,2]
[379972609,1755454247547,-6948.5598587,0.00024429,2]
[379972610,1755454247556,-155.19,0.00024459,7]
[379972611,1755454247566,-166.15,0.00024459,7]
[379972612,1755454247575,-757.97,0.00024459,7]
[379972613,1755454247584,-500.0,0.00024482,2]
[379972614,1755454247594,-459.93330802,0.00024534,2]
[379972615,1755454247603,-155.19,0.00024559,7]
[379972616,1755454247612,-166.15,0.00024559,7]
[379972617,1755454247622,-757.97,0.00024559,7]
[379972618,1755454247631,-151.0,0.00024604,5]
[379972619,1755454247640,-960.0,0.00024634,2]
[379972620,1755454247650,-500.74,0.00024657,2]
[379972621,1755454247660,-539.5,0.00024657,2]
[379972622,1755454247669,-937.0,0.00024657,2]
[379972623,1755454247679,-591.23,0.00024657,2]
[379972624,1755454247688,-944.68,0.00024657,2]
[379972625,1755454247698,-480.0,0.00024657,2]
[379972626,1755454247707,-2087.31,0.00024657,2]
[379972627,1755454247717,-926.1,0.00024657,2]
[379972628,1755454247728,-480.0,0.00024657,2]
[379972629,1755454247739,-567.96888617,0.00024657,2]
[379972630,1755454247748,-480.0,0.00024657,2]
[379972631,1755454247757,-510.49,0.00024657,2]
[379972632,1755454247767,-200.0,0.00024658,15]
[379972633,1755454247777,-380.0,0.00024658,2]
[379972634,1755454247787,-155.19,0.00024659,7]
[379972635,1755454247796,-166.16586478,0.00024659,7]
[379972636,1755454247805,-757.97,0.00024659,7]
[379972637,1755454247814,-155.19,0.00024759,7]
[379972638,1755454247823,-757.97,0.00024759,7]
[379972639,1755454247833,-33279.2,0.000248,2]
[379972640,1755454247842,-12682.46447135,0.000248,3]
[379972641,1755454247851,-528.48506731,0.000248,3]
[379972642,1755454247861,-160.0,0.000248,3]
[379972643,1755454247871,-417.15472785,0.000248,3]
[379972644,1755454247881,-160.0,0.000248,3]
[379972645,1755454247890,-216.83204348,0.000248,3]
[379972646,1755454247900,-215.71995163,0.000248,3]
[379972647,1755454247909,-160.0,0.000248,3]
[379972648,1755454247918,-2044.51891081,0.000248,2]
[379972649,1755454247927,-843.71309931,0.000248,3]
[379972650,1755454247936,-232.1512529,0.000248,3]
[379972651,1755454247946,-160.0,0.000248,3]
[379972652,1755454247955,-375.77065697,0.000248,3]
[379972653,1755454247965,-5820.41352066,0.000248,2]
[379972654,1755454247975,-700.0,0.00024808,2]
[379972655,1755454247985,-155.24,0.00024859,7]
[379972656,1755454247994,-757.97,0.00024859,7]
[379972657,1755454248003,-150.0,0.00024873,2]
[379972658,1755454248014,-150.0,0.00024873,2]
[379972659,1755454248023,-151.0,0.000249,7]
[379972660,1755454248032,-151.094385,0.000249,7]
[379972661,1755454248042,-151.0,0.000249,7]
[379972662,1755454248051,-151.0,0.000249,7]
[379972663,1755454248061,-151.0,0.000249,7]
[379972664,1755454248070,-151.0,0.000249,7]
[379972665,1755454248080,-151.0,0.000249,7]
[379972666,1755454248089,-151.0,0.000249,7]
[379972667,1755454248099,-151.0,0.000249,7]
[379972668,1755454248110,-151.0,0.000249,7]
[379972670,1755454248120,-151.0,0.000249,7]
[379972672,1755454248129,-151.0,0.000249,7]
[379972674,1755454248139,-151.0,0.000249,7]
[379972676,1755454248149,-151.0,0.000249,7]
[379972678,1755454248159,-151.0,0.000249,7]
[379972680,1755454248169,-151.0,0.000249,7]
[379972682,1755454248179,-220.39901,0.000249,7]
[379972683,1755454248189,-151.0,0.000249,7]
[379972684,1755454248200,-151.0,0.000249,7]
[379972685,1755454248210,-151.0,0.000249,7]
[379972687,1755454248222,-151.0,0.000249,7]
[379972689,1755454248231,-151.0,0.000249,7]
[379972691,1755454248241,-151.0,0.000249,7]
[379972693,1755454248251,-151.0,0.000249,7]
[379972694,1755454248260,-151.0,0.000249,7]
[379972695,1755454248269,-272.038071,0.000249,7]
[379972696,1755454248279,-300.912384,0.000249,7]
[379972697,1755454248290,-272.038071,0.000249,7]
[379972698,1755454248300,-151.497329,0.000249,7]
[379972699,1755454248310,-151.0,0.000249,7]
[379972700,1755454248320,-151.0,0.000249,7]
[379972701,1755454248329,-151.0,0.000249,7]
[379972702,1755454248343,-151.0,0.000249,7]
[379972703,1755454248352,-151.0,0.000249,7]
[379972704,1755454248361,-151.0,0.000249,7]
[379972705,1755454248373,-284.118487,0.000249,7]
[379972706,1755454248382,-283.97858,0.000249,7]
[379972707,1755454248392,-154.489964,0.000249,7]
[379972708,1755454248401,-151.0,0.000249,7]
[379972709,1755454248411,-151.0,0.000249,7]
[379972711,1755454248421,-445.318594,0.000249,7]
[379972713,1755454248431,-151.0,0.000249,7]
[379972714,1755454248440,-445.318594,0.000249,7]
[379972715,1755454248450,-151.0,0.000249,7]
[379972717,1755454248459,-151.0,0.000249,7]
[379972718,1755454248469,-151.0,0.000249,7]
[379972719,1755454248478,-151.0,0.000249,7]
[379972720,1755454248487,-151.0,0.000249,7]
[379972722,1755454248496,-151.0,0.000249,7]
[379972724,1755454248505,-151.0,0.000249,7]
[379972726,1755454248514,-151.0,0.000249,7]
[379972728,1755454248524,-153.719746,0.000249,7]
[379972730,1755454248535,-151.0,0.000249,7]
[379972732,1755454248545,-151.0,0.000249,7]
[379972734,1755454248554,-151.0,0.000249,7]
[379972736,1755454248563,-314539.30504803,0.000249,2]
[379972742,1755454248661,-5261.10802629,0.000249,2]
[379972743,1755454248674,-22655.48238703,0.000249,2]
[379972744,1755454248808,-128462.23944573,0.000249,2]
[379972745,1755454248819,-362.85776397,0.000249,2]
[379972746,1755454249015,-494.3173247,0.000249,2]
[379972747,1755454249252,-470.8,0.00019178,2]
[379972748,1755454249333,-9.2,0.00019178,2]
[379972749,1755454249343,-3802.59,0.00021359,10]
[379972750,1755454249352,-416232.50851725,0.000249,2]
[379972751,1755454249362,-151.0,0.000249,7]
[379972752,1755454249371,-151.0,0.000249,7]
[379972753,1755454249381,-151.0,0.000249,7]
[379972754,1755454249390,-151.0,0.000249,7]
[379972755,1755454249399,-12682.46447135,0.000249,7]
[379972756,1755454249409,-311.372576,0.000249,7]
[379972757,1755454249418,-151.0,0.000249,7]
[379972758,1755454249428,-311.372576,0.000249,7]
[379972759,1755454249437,-151.0,0.000249,7]
[379972760,1755454249447,-151.0,0.000249,7]
[379972761,1755454249455,-151.0,0.000249,7]
[379972762,1755454249465,-151.0,0.000249,7]
[379972763,1755454249474,-163.27371013,0.000249,2]
[379972764,1755454249483,-151.0,0.000249,7]
[379972765,1755454249492,-151.0,0.000249,7]
[379972766,1755454249502,-234.050364,0.000249,7]
[379972767,1755454249511,-332.340379,0.000249,7]
[379972768,1755454249521,-500.74,0.00024931,2]
[379972769,1755454249530,-591.23,0.00024931,2]
[379972770,1755454249540,-944.68,0.00024931,2]
[379972771,1755454249549,-354.3232187,0.00024931,2]
[379972772,1755454249559,-2087.31,0.00024931,2]
[379972773,1755454249568,-926.1,0.00024931,2]
[379972775,1755454249577,-480.0,0.00024931,2]
[379972788,1755454249586,-528.34655159,0.00024931,2]
[379972791,1755454249711,-510.49,0.00024931,2]
[379972793,1755454249720,-150.59,0.00024957,7]
[379972795,1755454249736,-155.2,0.00024958,7]
[379972797,1755454249746,-162.29,0.00024958,7]
[379972799,1755454249755,-757.97,0.00024959,7]
[379972801,1755454249766,-3500.0,0.00024964,2]
[379972803,1755454249777,-719.06,0.00024978,2]
[379972805,1755454249788,-1337.47956195,0.00025,30]
[379972807,1755454249798,-1358.34398458,0.00025,7]
[379972809,1755454249807,-14389.81,0.00025,7]
[379972811,1755454249816,-5425.35,0.00025,7]
[379972813,1755454249826,-417.15472785,0.00025,7]
[379972815,1755454249835,-216.83204348,0.00025,7]
[379972817,1755454249844,-215.71995163,0.00025,7]
[379972819,1755454249853,-843.71309931,0.00025,7]
[379972821,1755454249862,-232.1512529,0.00025,7]
[379972823,1755454249872,-375.77065697,0.00025,7]
[379972825,1755454249881,-496.19133972,0.00025015,2]
[379972827,1755454249891,-2044.51891081,0.00025057,2]
[379972829,1755454249900,-150.59,0.00025057,7]
[379972831,1755454249909,-155.2,0.00025058,7]
[379972833,1755454249919,-162.29,0.00025058,7]
[379972835,1755454249928,-757.97,0.00025059,7]
[379972837,1755454249937,-151.0,0.000251,12]
[379972839,1755454249947,-2264.10087163,0.00025142,2]
[379972841,1755454249956,-17842.522448,0.00025142,2]
[379972843,1755454249965,-150.59,0.00025157,7]
[379972845,1755454249975,-155.2,0.00025158,7]
[379972847,1755454249984,-162.29,0.00025158,7]
[379972849,1755454249994,-757.97,0.00025159,7]
[379972851,1755454250003,-1060.0,0.00025182,2]
[379972853,1755454250012,-162.95,0.000252,7]
[379972855,1755454250022,-1000.0,0.000252,2]
[379972857,1755454250031,-1000.0,0.000252,2]
[379972859,1755454250041,-1000.0,0.000252,2]
[379972861,1755454250050,-1000.0,0.000252,2]
[379972863,1755454250059,-500.74,0.00025205,2]
[379972865,1755454250068,-591.23,0.00025205,2]
[379972867,1755454250078,-2087.31,0.00025205,2]
[379972869,1755454250087,-926.1,0.00025205,2]
[379972871,1755454250097,-234.32859013,0.00025205,2]
[379972873,1755454250107,-510.49,0.00025205,2]
[379972875,1755454250116,-150.59,0.00025257,7]
[379972877,1755454250127,-155.2,0.00025258,7]
[379972879,1755454250137,-162.29,0.00025258,7]
[379972881,1755454250146,-757.97,0.00025259,7]
[379972883,1755454250155,-4000.0,0.00025299,4]
[379972885,1755454250165,-1000.0,0.000253,2]
[379972887,1755454250174,-1000.0,0.000253,2]
[379972889,1755454250184,-2044.51891081,0.00025314,2]
[379972891,1755454250193,-150.66,0.00025357,7]
[379972893,1755454250203,-155.2,0.00025358,7]
[379972895,1755454250213,-162.29,0.00025358,7]
[379972897,1755454250223,-757.97,0.00025359,7]
[379972899,1755454250232,-224.69,0.00025383,7]
[379972901,1755454250241,-250.0,0.00025421,2]
[379972903,1755454250251,-300.0,0.00025421,2]
[379972905,1755454250260,-155.2,0.00025458,7]
[379972907,1755454250270,-162.39,0.00025458,7]
[379972909,1755454250279,-757.97,0.00025459,7]
[379972911,1755454250293,-500.88651036,0.00025479,2]
[379972914,1755454250302,-591.4368575,0.00025479,2]
[379972915,1755454250311,-2087.39,0.00025479,2]
[379972916,1755454250320,-926.1,0.00025479,2]
[379972917,1755454250330,-510.55584977,0.00025479,2]
[379972918,1755454250340,-160.0,0.000255,3]
[379972919,1755454250349,-4000.0,0.00025512,2]
[379972920,1755454250358,-207.0,0.0002552,2]
[379972921,1755454250367,-431.9864578,0.00025532,2]
[379972922,1755454250377,-431.9864578,0.00025532,2]
[379972923,1755454250387,-431.9864578,0.00025532,2]
[379972924,1755454250396,-431.9864578,0.00025532,2]
[379972925,1755454250406,-431.9864578,0.00025532,2]
[379972926,1755454250415,-431.9864578,0.00025532,2]
[379972927,1755454250425,-431.9864578,0.00025532,2]
[379972928,1755454250435,-155.2,0.00025558,7]
[379972929,1755454250444,-757.97,0.00025559,7]
[379972930,1755454250453,-2044.51891081,0.00025572,2]
[379972931,1755454250463,-1000.0,0.00025607,20]
[379972932,1755454250478,-1000.0,0.00025625,5]
[379972933,1755454250499,-155.2,0.00025658,7]
[379972935,1755454250515,-757.97,0.00025659,7]
[379972937,1755454250524,-1160.0,0.00025729,2]
[379972939,1755454250535,-155.2,0.00025758,7]
[379972941,1755454250544,-757.97,0.00025759,7]
[379972943,1755454250554,-356.0,0.0002578,2]
[379972945,1755454250563,-150.0,0.0002578,2]
[379972947,1755454250572,-150.0,0.0002578,2]
[379972949,1755454250582,-972.0,0.0002578,2]
[379972951,1755454250592,-2153.0,0.0002578,2]
[379972953,1755454250601,-637.0,0.0002578,2]
[379972955,1755454250610,-2044.51891081,0.00025829,2]
[379972957,1755454250620,-155.2,0.00025858,7]
[379972959,1755454250629,-757.988,0.00025859,7]
[379972961,1755454250638,-645.0,0.000259,2]
[379972963,1755454250647,-821.78,0.00025903,2]
[379972965,1755454250656,-700.0,0.00025904,2]
[379972967,1755454250666,-168.0,0.00025928,2]
[379972969,1755454250675,-441.0,0.00025936,2]
[379972971,1755454250685,-155.2,0.00025958,7]
[379972973,1755454250695,-350.0,0.00025968,2]
[379972975,1755454250705,-450.0,0.00025968,2]
[379972977,1755454250715,-356.0,0.00025997,2]
[379972979,1755454250724,-33279.2,0.00026,2]
[379972981,1755454250738,-207.0,0.0002601,2]
[379972983,1755454250747,-500.0,0.00026027,2]
[379972985,1755454250756,-155.29331807,0.00026058,7]
[379972987,1755454250766,-4500.0,0.0002606,2]
[379972990,1755454250777,-441.0,0.00026067,2]
[379972991,1755454250786,-2044.51891081,0.00026086,2]
[379972993,1755454250795,-679.47490371,0.00026125,2]
[379972995,1755454250804,-356.0,0.00026131,2]
[379972997,1755454250814,-356.0,0.00026145,2]
[379972999,1755454250823,-14389.81,0.000262,7]
[379973001,1755454250832,-441.0,0.00026215,2]
[379973003,1755454250841,-431.9864578,0.00026274,2]
[379973005,1755454250851,-431.9864578,0.00026274,2]
[379973007,1755454250860,-431.9864578,0.00026274,2]
[379973009,1755454250869,-431.9864578,0.00026274,2]
[379973011,1755454250878,-431.9864578,0.00026274,2]
[379973013,1755454250888,-431.9864578,0.00026274,2]
[379973015,1755454250897,-1260.0,0.00026277,2]
[379973017,1755454250906,-5425.35,0.000263,7]
[379973019,1755454250915,-297.71480383,0.00026315,7]
[379973021,1755454250924,-2044.51891081,0.00026343,2]
[379973023,1755454250934,-441.0,0.0002637,2]
[379973025,1755454250943,-3630.75875642,0.00026416,2]
[379973027,1755454250952,-6448.22755139,0.00026416,2]
[379973029,1755454250961,-544.5022476,0.00026416,2]
[379973031,1755454250970,-2178.0089904,0.00026416,2]
[379973033,1755454250979,-1830.73420512,0.00026416,2]
[379973760,1755454453236,54.05712386,0.00017913,2]
[379973761,1755454453305,945.94287614,0.00017913,2]
[379973776,1755455105839,364.916983,0.00013699,2]
[379973779,1755455141179,167.540263,0.00027397,120]
[379973833,1755455432580,-189.52552289,0.00018572,2]
[379973836,1755455432590,-789.0,0.00018672,2]
[379973837,1755455432600,-300.0,0.00018672,2]
[379973840,1755455432610,-1200.0,0.00018672,2]
[379973841,1755455432622,-6903.38453016,0.00018673,2]
[379973844,1755455432634,-458.80512045,0.00018673,2]
[379973845,1755455432644,-246.29,0.00018745,3]
[379973847,1755455432654,-738.87,0.00018745,3]
[379973849,1755455432663,-679.31,0.00018745,3]
[379973851,1755455432673,-339.66,0.00018745,3]
[379973852,1755455432682,-169.83,0.00018745,3]
[379973853,1755455432691,-509.5,0.00018745,3]
[379973854,1755455432701,-5534.36474667,0.00018754,2]
[379973855,1755455432801,-1082.27494397,0.00018754,2]
[379973921,1755455438266,-5608.5137974,0.00018754,2]
[379973922,1755455438276,-409.02156455,0.00018754,2]
[379973923,1755455438286,-500.0,0.00018754,2]
[379973924,1755455438294,-500.0,0.00018754,2]
[379973925,1755455438303,-500.0,0.00018754,2]
[379973926,1755455438313,-500.0,0.00018754,2]
[379973927,1755455438322,-500.0,0.00018754,2]
[379973928,1755455438331,-500.0,0.00018754,2]
[379973929,1755455438342,-500.0,0.00018754,2]
[379973930,1755455438352,-500.0,0.00018754,2]
[379973931,1755455438361,-500.0,0.00018754,2]
[379973932,1755455438371,-500.0,0.00018754,2]
[379973933,1755455438380,-500.0,0.00018754,2]
[379973934,1755455438390,-500.0,0.00018754,2]
[379973935,1755455438399,-500.0,0.00018754,2]
[379973936,1755455438409,-500.0,0.00018754,2]
[379973937,1755455438418,-500.0,0.00018754,2]
[379973938,1755455438428,-500.0,0.00018754,2]
[379973939,1755455438437,-500.0,0.00018754,2]
[379973940,1755455438446,-500.0,0.00018754,2]
[379973941,1755455438456,-500.0,0.00018754,2]
[379973942,1755455438466,-427.61189805,0.00018754,2]
[379973943,1755455438475,-500.0,0.00018754,2]
[379973944,1755455438484,-500.0,0.00018754,2]
[379973945,1755455438493,-500.0,0.00018754,2]
[379973946,1755455438503,-500.0,0.00018754,2]
[379973947,1755455438512,-500.0,0.00018754,2]
[379973948,1755455438521,-500.0,0.00018754,2]
[379973949,1755455438531,-500.0,0.00018754,2]
[379973950,1755455438539,-500.0,0.00018754,2]
[379973951,1755455438550,-325.30001005,0.00018754,2]
[379973952,1755455438561,-174.69998995,0.00018754,2]
[379973953,1755455438571,-500.0,0.00018754,2]
[379973954,1755455438580,-500.0,0.00018754,2]
[379973955,1755455438590,-186.84382867,0.00018754,2]
[379973956,1755455438601,-313.15617133,0.00018754,2]
[379973957,1755455438609,-215.74091985,0.00018754,2]
[379973958,1755455438620,-284.25908015,0.00018754,2]
[379973959,1755455438629,-500.0,0.00018754,2]
[379973960,1755455438639,-500.0,0.00018754,2]
[379973961,1755455438648,-300.0,0.00018754,2]
[379973962,1755455438657,-500.0,0.00018754,2]
[379973963,1755455438666,-500.0,0.00018754,2]
[379973964,1755455438675,-332.73525713,0.00018754,2]
[379973965,1755455438684,-464.38598723,0.00018754,2]
[379973966,1755455438697,-35.61401277,0.00018754,2]
[379973967,1755455438706,-370000.0,0.00018755,2]
[379973968,1755455438715,-282.13211643,0.00018773,2]
[379973969,1755455438724,-1000.0,0.00018862,2]
[379973970,1755455438733,-1000.0,0.00018862,2]
[379973972,1755455438742,-1000.0,0.00018862,2]
[379973974,1755455438751,-1000.0,0.00018862,2]
[379973975,1755455438760,-1000.0,0.00018862,2]
[379973976,1755455438769,-1000.0,0.00018862,2]
[379973977,1755455438778,-1000.0,0.00018862,2]
[379973978,1755455438787,-1000.0,0.00018862,2]
[379973980,1755455438797,-1000.0,0.00018862,2]
[379973982,1755455438807,-1000.0,0.00018862,2]
[379973984,1755455438817,-1000.0,0.00018862,2]
[379973985,1755455438827,-1000.0,0.00018862,2]
[379973986,1755455438836,-1000.0,0.00018862,2]
[379973987,1755455438845,-1000.0,0.00018862,2]
[379973988,1755455438855,-1000.0,0.00018862,2]
[379973989,1755455438864,-1000.0,0.00018862,2]
[379973990,1755455438874,-1000.0,0.00018862,2]
[379973991,1755455438883,-499.90100014,0.00018862,2]
[379973992,1755455438892,-151.0,0.00018862,2]
[379973993,1755455438902,-151.0,0.00018862,2]